bitfinex-derivatives/quotes_SOLF0:USTF0_20230901
["timestamp","ask_amount","ask_price","bid_price","bid_amount"]
[1693605322023,112.46,19.244,19.236,112.46]
[1693605322623,112.46,19.244,19.237,21.832]
[1693605332026,112.46,19.244,19.237,134.292]
[1693605332727,112.46,19.247,19.239,112.46]
[1693605336128,112.46,19.249,19.242,112.46]
[1693605341938,112.46,19.25,19.242,112.46]
[1693605344639,112.46,19.25,19.237,64.39199999]
[1693605344640,500.0,19.264,19.245,112.46]
[1693605344836,500.0,19.264,19.238,500.0]
[1693605344837,112.46,19.256,19.248,112.46]
[1693605345334,112.46,19.256,19.249,21.2808]
[1693605345540,112.46,19.258,19.251,112.46]
[1693605345936,112.46,19.258,19.252,21.2808]
[1693605348438,112.46,19.259,19.252,133.7408]
[1693605348638,112.46,19.259,19.252,112.46]
[1693605348941,112.46,19.259,19.253,21.8851]
[1693605351942,112.46,19.261,19.254,112.46]
[1693605353139,112.46,19.264,19.256,112.46]
[1693605353547,112.46,19.267,19.259,112.46]
[1693605354049,112.46,19.267,19.26,22.2256]
[1693605354845,112.46,19.269,19.261,112.46]
[1693605355347,112.46,19.269,19.262,22.2256]
[1693605361555,112.46,19.275,19.267,112.46]
[1693605361964,112.46,19.276,19.268,112.46]
[1693605362460,112.46,19.276,19.269,21.3313]
[1693605363064,112.46,19.279,19.272,112.46]
[1693605364862,29.60390218,19.283,19.269,21.3313]
[1693605365058,112.46,19.28,19.272,112.46]
[1693605365456,112.46,19.28,19.275,112.46]
[1693605365655,112.46,19.28,19.272,112.46]
[1693605369456,112.46,19.281,19.273,112.46]
[1693605371966,112.46,19.282,19.274,112.46]
[1693605372368,182.88175376,19.283,19.275,112.46]
[1693605374469,142.06390218,19.283,19.275,112.46]
[1693605374865,29.60390218,19.283,19.277,112.46]
[1693605378170,153.38116182,19.285,19.277,112.46]
[1693605379776,40.92116182,19.285,19.281,112.46]
[1693605379969,112.46,19.289,19.281,112.46]
[1693605380572,112.46,19.292,19.284,112.46]
[1693605382073,112.46,19.292,19.285,112.46]
[1693605385872,112.46,19.292,19.286,20.2558]
[1693605389076,112.46,19.292,19.277,41.11145671]
[1693605389077,112.46,19.296,19.288,112.46]
[1693605390880,112.46,19.296,19.289,21.8558]
[1693605391983,112.46,19.297,19.29,112.46]
[1693605393479,70.19625311,19.299,19.293,112.46]
[1693605394880,28.67422098,19.299,19.293,112.46]
[1693605395175,28.67422098,19.299,19.295,112.46]
[1693605400476,28.67422098,19.299,19.289,21.8558]
[1693605400477,28.67422098,19.299,19.294,112.46]
[1693605401987,28.67422098,19.299,19.289,21.8558]
[1693605401988,28.67422098,19.299,19.293,112.46]
[1693605410393,112.46,19.298,19.29,112.46]
[1693605410587,267.66,19.298,19.29,112.46]
[1693605411993,112.46,19.297,19.289,134.3158]
[1693605422994,112.46,19.296,19.289,21.8558]
[1693605423594,112.46,19.294,19.289,21.8558]
[1693605427500,500.0,19.305,19.289,21.8558]
[1693605427501,500.0,19.315,19.289,521.8558]
[1693605427702,112.46,19.311,19.299,112.46]
[1693605428101,112.46,19.311,19.3,21.5247]
[1693605428302,112.46,19.312,19.302,112.46]
[1693605428708,112.46,19.312,19.303,21.5247]
[1693605434206,154.60300517,19.312,19.303,21.5247]
[1693605446119,42.14300517,19.312,19.304,112.46]
[1693605446320,112.46,19.314,19.304,112.46]
[1693605446510,112.46,19.314,19.305,22.221]
[1693605452023,112.46,19.313,19.305,22.221]
[1693605452225,143.87791543,19.313,19.305,22.221]
[1693605453123,112.46,19.312,19.305,22.221]
[1693605453324,112.46,19.312,19.302,112.46]
[1693605453625,112.46,19.312,19.303,21.401]
[1693605453826,112.46,19.31,19.303,21.401]
[1693605454022,112.46,19.31,19.301,112.46]
[1693605454223,112.46,19.31,19.302,21.401]
[1693605461925,112.46,19.309,19.302,21.401]
[1693605462229,112.46,19.309,19.299,112.46]
[1693605462430,112.46,19.309,19.3,300.68687326]
[1693605462622,112.46,19.309,19.3,22.0519]
[1693605471942,112.46,19.308,19.3,22.0519]
[1693605472140,73.01708683,19.313,19.3,22.0519]
[1693605472337,112.46,19.308,19.3,22.0519]
[1693605480743,112.46,19.308,19.301,278.66962697]
[1693605480941,112.46,19.308,19.3,22.0519]
[1693605482042,112.46,19.307,19.301,278.67262803]
[1693605482546,112.46,19.307,19.302,20.6827]
[1693605483244,112.46,19.306,19.302,20.6827]
[1693605483445,112.46,19.306,19.298,0.45454546]
[1693605483646,112.46,19.306,19.298,299.80463543]
[1693605483846,112.46,19.306,19.299,278.66738997]
[1693605491950,112.46,19.305,19.299,278.66738997]
[1693605495147,68.93022797,19.305,19.299,278.66738997]
[1693605497551,68.9926615,19.305,19.299,278.66738997]
[1693605499856,68.9926615,19.305,19.301,0.12489202]
[1693605507059,68.9926615,19.305,19.301,278.71257245]
[1693605507251,68.9926615,19.305,19.302,278.58768043]
[1693605507553,68.9926615,19.305,19.303,278.58768043]
[1693605507754,68.9926615,19.305,19.304,278.58768043]
[1693605507952,68.9926615,19.305,19.301,0.12489202]
[1693605509961,68.9926615,19.305,19.301,278.71257245]
[1693605510262,68.9926615,19.305,19.302,278.58768043]
[1693605510454,68.9926615,19.305,19.303,278.58768043]
[1693605510654,68.9926615,19.305,19.304,278.58768043]
[1693605510854,68.9926615,19.305,19.301,0.12489202]
[1693605511353,68.93022797,19.305,19.301,278.58768043]
[1693605511561,68.93022797,19.305,19.302,278.58768043]
[1693605511754,68.93022797,19.305,19.303,278.58768043]
[1693605512055,42.08497409,19.308,19.304,278.58768043]
[1693605512260,73.01708683,19.313,19.298,62.74280362]
[1693605512261,112.46,19.305,19.298,62.74280362]
[1693605512457,112.46,19.303,19.299,278.58732848]
[1693605512660,68.93076846,19.303,19.299,278.58732848]
[1693605513160,68.93076846,19.303,19.3,278.58732848]
[1693605513459,68.93076846,19.303,19.301,278.58732848]
[1693605513652,68.93076846,19.303,19.302,278.58732848]
[1693605514052,68.93076846,19.303,19.299,278.58732848]
[1693605514259,68.93076846,19.303,19.3,278.58732848]
[1693605514457,68.93076846,19.303,19.301,278.58732848]
[1693605514662,68.93076846,19.303,19.302,278.58732848]
[1693605514857,68.93076846,19.303,19.301,0.12489202]
[1693605521969,112.46,19.302,19.301,0.12489202]
[1693605526471,112.46,19.302,19.299,278.65163411]
[1693605529575,112.46,19.302,19.299,278.77653907]
[1693605540985,112.46,19.302,19.299,0.12490496]
[1693605541381,112.46,19.302,19.298,20.6827]
[1693605541586,112.46,19.302,19.299,278.64412074]
[1693605541790,112.46,19.302,19.3,278.64412074]
[1693605541985,40.48472293,19.305,19.301,278.64412074]
[1693605542188,112.46,19.302,19.293,0.45454546]
[1693605542489,112.46,19.3,19.293,279.08724502]
[1693605542690,112.46,19.3,19.294,557.26539912]
[1693605542986,112.46,19.3,19.295,278.63269956]
[1693605543292,112.46,19.3,19.296,278.63269956]
[1693605543491,112.46,19.3,19.297,278.63269956]
[1693605543692,112.46,19.3,19.298,278.63269956]
[1693605543986,0.06243999,19.303,19.299,278.63269956]
[1693605544192,139.57810055,19.3,19.29,22.0579]
[1693605544392,112.46,19.291,19.29,22.0579]
[1693605544591,68.90856296,19.291,19.29,22.0579]
[1693605544792,68.90856296,19.291,19.283,0.45454546]
[1693605545692,112.46,19.287,19.281,20.8673]
[1693605545895,112.46,19.287,19.281,299.59565422]
[1693605546096,112.46,19.287,19.281,20.8673]
[1693605546495,112.46,19.284,19.281,20.8673]
[1693605546797,112.46,19.284,19.276,112.46]
[1693605546998,112.46,19.284,19.283,0.37501495]
[1693605556505,112.46,19.284,19.279,0.43760505]
[1693605556506,112.46,19.284,19.277,21.8618]
[1693605556804,112.46,19.282,19.277,21.8618]
[1693605560900,112.46,19.282,19.279,0.25006536]
[1693605564503,112.46,19.28,19.279,0.25006536]
[1693605586419,112.46,19.28,19.272,20.7998]
[1693605586615,112.46,19.276,19.272,20.7998]
[1693605590827,112.46,19.276,19.275,0.31264426]
[1693605591430,112.46,19.279,19.275,0.31264426]
[1693605598842,112.46,19.276,19.275,0.31264426]
[1693605601337,112.46,19.276,19.272,20.7998]
[1693605601935,112.46,19.274,19.272,20.7998]
[1693605602139,112.46,19.274,19.266,153.78848988]
[1693605602336,112.46,19.274,19.267,20.154]
[1693605605948,112.46,19.274,19.271,0.37524823]
[1693605606342,112.46,19.272,19.271,0.37524823]
[1693605614446,112.46,19.273,19.271,0.37524823]
[1693605616453,112.46,19.273,19.267,20.59187726]
[1693605616454,112.46,19.273,19.267,20.154]
[1693605620147,112.46,19.276,19.268,112.46]
[1693605620853,112.46,19.276,19.275,0.31264426]
[1693605627661,112.46,19.278,19.275,0.31264426]
[1693605632066,112.46,19.276,19.275,0.31264426]
[1693605632366,112.46,19.276,19.269,112.46]
[1693605637868,112.46,19.276,19.275,0.31264426]
[1693605647473,112.46,19.276,19.268,278.97470019]
[1693605651877,112.46,19.276,19.275,0.31264426]
[1693605663290,112.46,19.279,19.275,0.31264426]
[1693605663496,112.46,19.281,19.275,0.31264426]
[1693605663887,112.46,19.284,19.277,112.46]
[1693605664393,112.46,19.284,19.278,21.5271]
[1693605665090,112.46,19.284,19.275,0.31264426]
[1693605665291,112.46,19.287,19.279,112.46]
[1693605665488,25.30872339,19.287,19.28,278.89148846]
[1693605665689,112.46,19.287,19.28,278.89148846]
[1693605665891,112.46,19.287,19.281,21.5271]
[1693605666091,112.46,19.287,19.281,300.41858846]
[1693605666391,112.46,19.287,19.282,278.89148846]
[1693605672099,112.46,19.289,19.282,278.89148846]
[1693605677400,112.46,19.289,19.281,133.9871]
[1693605677596,112.46,19.289,19.282,278.88207436]
[1693605680106,142.17847895,19.291,19.283,112.46]
[1693605680298,142.17847895,19.291,19.284,278.88207436]
[1693605681902,29.71847895,19.291,19.284,278.88207436]
[1693605683205,142.17847895,19.291,19.284,278.88207436]
[1693605691905,112.46,19.29,19.284,278.88207436]
[1693605695217,29.71847895,19.291,19.285,112.46]
[1693605695413,29.71847895,19.291,19.286,278.88207436]
[1693605697019,29.71847895,19.291,19.285,112.46]
[1693605699517,112.46,19.289,19.281,133.9871]
[1693605699811,29.71847895,19.291,19.285,112.46]
[1693605703118,112.46,19.287,19.279,112.46]
[1693605703425,500.0,19.278,19.27,70.989943]
[1693605703623,143.50563152,19.276,19.271,279.06313383]
[1693605703923,143.50563152,19.276,19.272,279.03471726]
[1693605704127,143.50563152,19.276,19.268,22.1041]
[1693605707415,143.50563152,19.276,19.27,0.06254689]
[1693605708323,31.04563152,19.276,19.273,112.46]
[1693605712723,31.04563152,19.276,19.27,0.06254689]
[1693605712724,112.46,19.274,19.27,0.06254689]
[1693605713126,112.46,19.271,19.263,112.46]
[1693605713426,31.04563152,19.276,19.259,112.46]
[1693605713427,612.46,19.268,19.259,112.46]
[1693605714826,112.46,19.268,19.259,112.46]
[1693605716226,112.46,19.265,19.257,112.46]
[1693605719333,112.46,19.263,19.255,112.46]
[1693605719932,112.46,19.263,19.256,21.735]
[1693605722032,112.46,19.261,19.256,21.735]
[1693605722333,112.46,19.261,19.253,112.46]
[1693605725632,500.0,19.268,19.248,0.45454546]
[1693605725633,112.46,19.259,19.251,112.46]
[1693605730339,500.0,19.268,19.247,20.7019]
[1693605730340,112.46,19.252,19.247,20.7019]
[1693605730535,112.46,19.252,19.244,112.46]
[1693605730737,112.46,19.252,19.245,20.7033]
[1693605731936,112.46,19.251,19.245,20.7033]
[1693605732240,124.99,19.254,19.245,20.7033]
[1693605734946,124.99,19.256,19.245,20.7033]
[1693605740053,124.99,19.263,19.25,124.99]
[1693605740356,124.99,19.26,19.248,124.99]
[1693605740545,124.99,19.26,19.249,0.45454546]
[1693605740743,124.99,19.263,19.251,124.99]
[1693605742554,124.99,19.269,19.256,124.99]
[1693605742857,124.99,19.269,19.257,0.45454546]
[1693605743059,124.99,19.266,19.257,20.67774546]
[1693605743256,124.99,19.266,19.258,0.45454546]
[1693605744349,124.99,19.259,19.258,0.45454546]
[1693605744555,124.99,19.259,19.246,22.45674546]
[1693605744758,124.99,19.256,19.247,0.45454546]
[1693605748748,499.96,19.262,19.232,414.21578749]
[1693605748749,124.99,19.248,19.232,414.21578749]
[1693605748954,124.99,19.247,19.241,22.125]
[1693605749159,124.99,19.242,19.241,22.125]
[1693605749359,124.99,19.245,19.241,22.125]
[1693605749657,124.99,19.243,19.241,22.125]
[1693605750052,124.99,19.245,19.241,22.125]
[1693605757557,124.99,19.249,19.241,22.125]
[1693605757763,124.99,19.249,19.236,124.99]
[1693605758066,124.99,19.249,19.237,20.1863]
[1693605761964,124.99,19.246,19.237,20.1863]
[1693605768264,124.99,19.244,19.237,20.1863]
[1693605771966,124.99,19.241,19.237,20.1863]
[1693605777277,124.99,19.244,19.237,20.1863]
[1693605778681,499.96,19.254,19.237,20.1863]
[1693605778682,124.99,19.247,19.237,20.1863]
[1693605779175,124.99,19.244,19.237,20.1863]
[1693605783280,124.99,19.243,19.237,20.1863]
[1693605786481,124.99,19.24,19.23,41.31392931]
[1693605786790,124.99,19.238,19.232,22.1833]
[1693605791983,124.99,19.238,19.228,196.58461538]
[1693605792288,499.96,19.246,19.221,999.96]
[1693605792289,124.99,19.242,19.231,500.0]
[1693605798893,124.99,19.242,19.23,124.99]
[1693605802392,112.6,19.239,19.232,112.6]
[1693605811995,112.6,19.241,19.234,112.6]
[1693605814400,112.6,19.244,19.237,112.6]
[1693605814799,112.6,19.244,19.238,21.4681]
[1693605822004,112.6,19.245,19.238,134.0681]
[1693605824907,112.6,19.245,19.24,0.73457697]
[1693605831911,112.6,19.244,19.24,0.73457697]
[1693605833017,112.6,19.244,19.238,63.12212596]
[1693605838920,112.6,19.244,19.238,21.4681]
[1693605841922,112.6,19.246,19.238,175.04887921]
[1693605844424,112.6,19.247,19.239,112.6]
[1693605845525,112.6,19.25,19.242,112.6]
[1693605845727,112.6,19.253,19.246,112.6]
[1693605851935,112.6,19.254,19.246,112.6]
[1693605852535,112.6,19.255,19.247,112.6]
[1693605861942,112.6,19.254,19.247,112.6]
[1693605864844,112.6,19.254,19.248,22.2255]
[1693605881955,112.6,19.256,19.248,134.8255]
[1693605892266,112.6,19.253,19.248,22.2255]
[1693605894165,112.6,19.249,19.241,41.65732086]
[1693605894360,112.6,19.248,19.239,112.6]
[1693605894565,112.6,19.248,19.24,21.9345]
[1693605901973,112.6,19.245,19.24,21.9345]
[1693605911981,112.6,19.246,19.24,21.9345]
[1693605921997,112.6,19.244,19.24,21.9345]
[1693605962036,112.6,19.243,19.24,21.9345]
[1693605964335,112.6,19.246,19.24,21.9345]
[1693605972043,112.6,19.249,19.241,112.6]
[1693605977653,112.6,19.249,19.247,0.06262162]
[1693605980555,112.6,19.248,19.247,0.06262162]
[1693605992764,153.96311687,19.248,19.247,0.06262162]
[1693606008471,112.6,19.248,19.247,0.06262162]
[1693606009872,0.45454546,19.266,19.247,0.06262162]
[1693606010074,112.6,19.253,19.247,0.06262162]
[1693606011974,112.6,19.252,19.247,0.06262162]
[1693606021283,112.6,19.252,19.243,112.6]
[1693606021981,112.6,19.252,19.244,112.6]
[1693606022276,112.6,19.252,19.248,0.06261837]
[1693606031796,112.6,19.249,19.248,0.06261837]
[1693606034299,112.6,19.249,19.24,21.9345]
[1693606034500,112.6,19.246,19.24,21.9345]
[1693606034901,112.6,19.246,19.239,112.6]
[1693606042007,112.6,19.246,19.238,112.6]
[1693606051919,112.6,19.245,19.237,112.6]
[1693606061826,112.6,19.247,19.24,112.6]
[1693606067229,112.6,19.245,19.237,112.6]
[1693606071937,112.6,19.244,19.236,112.6]
[1693606081939,112.6,19.243,19.235,112.6]
[1693606086540,112.6,19.24,19.232,112.6]
[1693606086745,112.6,19.237,19.231,20.1904]
[1693606094250,112.6,19.237,19.232,0.72276335]
[1693606103357,0.72323432,19.236,19.232,0.72276335]
[1693606107563,112.6,19.235,19.232,0.72276335]
[1693606107764,112.6,19.233,19.232,0.72276335]
[1693606148893,113.05454546,19.233,19.232,0.72276335]
[1693606153695,113.05454546,19.233,19.221,112.6]
[1693606154002,112.6,19.222,19.215,112.6]
[1693606158303,112.6,19.219,19.212,20.2463]
[1693606162008,112.6,19.221,19.213,112.6]
[1693606165212,112.6,19.221,19.215,0.70565436]
[1693606167614,0.77635369,19.22,19.215,0.70565436]
[1693606169816,112.6,19.217,19.215,0.70565436]
[1693606171919,112.6,19.218,19.215,0.70565436]
[1693606173922,112.6,19.216,19.215,0.70565436]
[1693606184431,112.6,19.219,19.215,0.70565436]
[1693606184630,112.6,19.223,19.215,113.30565436]
[1693606192346,0.70466905,19.221,19.215,113.30565436]
[1693606198253,0.70466905,19.221,19.219,112.6]
[1693606198450,112.6,19.226,19.219,112.6]
[1693606199852,112.6,19.226,19.221,0.83309529]
[1693606211963,112.6,19.227,19.221,0.83309529]
[1693606217578,112.6,19.227,19.221,0.89580161]
[1693606221983,112.6,19.228,19.221,113.49580161]
[1693606235898,112.6,19.229,19.222,112.6]
[1693606249203,21.1466,19.231,19.221,0.89580161]
[1693606249411,112.6,19.224,19.217,112.6]
[1693606249610,112.6,19.22,19.212,112.6]
[1693606250810,112.6,19.222,19.215,112.6]
[1693606251010,0.45454546,19.221,19.215,112.6]
[1693606251911,113.05454546,19.221,19.214,112.6]
[1693606252104,112.6,19.221,19.214,112.6]
[1693606266024,112.6,19.22,19.213,112.6]
[1693606272126,112.6,19.22,19.215,0.80873528]
[1693606279631,112.6,19.217,19.215,0.80873528]
[1693606281925,112.6,19.218,19.215,0.80873528]
[1693606289237,112.6,19.218,19.215,0.03238159]
[1693606291941,112.6,19.22,19.215,0.03238159]
[1693606293338,112.6,19.223,19.215,112.63238159]
[1693606293942,112.6,19.223,19.215,112.6]
[1693606294135,112.6,19.223,19.215,112.66272585]
[1693606296043,112.6,19.222,19.215,0.06272585]
[1693606298147,112.6,19.219,19.215,0.06272585]
[1693606306260,112.6,19.222,19.215,0.06272585]
[1693606307452,112.6,19.222,19.214,112.6]
[1693606308559,112.6,19.222,19.215,0.06272585]
[1693606311663,112.6,19.225,19.218,112.6]
[1693606319266,112.6,19.228,19.221,112.6]
[1693606326175,112.6,19.229,19.222,112.6]
[1693606331980,112.6,19.228,19.221,112.6]
[1693606332174,134.753,19.228,19.221,112.6]
[1693606341988,112.6,19.227,19.22,112.6]
[1693606358709,22.153,19.228,19.217,112.6]
[1693606358710,112.6,19.224,19.217,112.6]
[1693606362009,112.6,19.224,19.216,112.6]
[1693606373613,112.6,19.226,19.219,112.6]
[1693606381916,112.6,19.224,19.217,112.6]
[1693606407939,112.6,19.227,19.22,112.6]
[1693606408339,22.153,19.228,19.223,112.6]
[1693606408542,112.6,19.23,19.223,112.6]
[1693606418847,112.6,19.227,19.22,112.6]
[1693606441966,112.6,19.225,19.218,153.92293291]
[1693606442166,112.6,19.225,19.218,112.6]
[1693606446567,112.6,19.226,19.218,112.6]
[1693606455278,112.6,19.227,19.219,112.6]
[1693606467299,112.6,19.23,19.222,112.6]
[1693606470405,112.6,19.231,19.223,112.6]
[1693606471802,21.2072,19.236,19.22,21.48355678]
[1693606471803,133.8072,19.236,19.228,112.6]
[1693606472003,21.2072,19.236,19.231,112.6]
[1693606475701,112.6,19.238,19.231,112.6]
[1693606476105,21.2149,19.24,19.233,112.6]
[1693606476306,112.6,19.241,19.233,112.6]
[1693606476706,112.6,19.242,19.235,112.6]
[1693606478208,0.73065559,19.24,19.235,112.6]
[1693606478603,0.73065559,19.24,19.237,0.71993047]
[1693606500528,0.73065559,19.24,19.237,113.31993047]
[1693606502027,0.73065559,19.24,19.239,112.6]
[1693606505933,0.73065559,19.24,19.237,0.71993047]
[1693606533859,113.33065559,19.24,19.237,0.71993047]
[1693606563292,0.73065559,19.24,19.237,0.71993047]
[1693606567498,112.6,19.246,19.239,112.6]
[1693606568102,112.6,19.249,19.242,112.6]
[1693606568698,112.6,19.253,19.245,112.6]
[1693606570903,112.6,19.255,19.248,112.6]
[1693606572605,112.6,19.258,19.25,112.6]
[1693606573504,112.6,19.26,19.253,112.6]
[1693606582008,134.0145,19.261,19.254,112.6]
[1693606582208,112.6,19.258,19.251,112.6]
[1693606596318,112.6,19.26,19.253,112.6]
[1693606607732,112.6,19.258,19.251,112.6]
[1693606611937,112.6,19.26,19.253,112.6]
[1693606627144,112.6,19.259,19.252,112.6]
[1693606627347,139.86826835,19.259,19.252,112.6]
[1693606633046,112.6,19.259,19.252,112.6]
[1693606641954,175.77657791,19.261,19.253,112.6]
[1693606642554,112.6,19.263,19.256,112.6]
[1693606650360,112.6,19.266,19.259,112.6]
[1693606650557,112.6,19.269,19.262,112.6]
[1693606654362,64.56039064,19.27,19.264,112.6]
[1693606655758,22.3174,19.27,19.264,112.6]
[1693606655960,112.6,19.271,19.264,112.6]
[1693606656862,31.02681966,19.272,19.267,112.6]
[1693606661163,31.02681966,19.272,19.268,0.71707738]
[1693606661467,0.85427609,19.271,19.268,0.71707738]
[1693606669477,0.85427609,19.271,19.269,112.6]
[1693606672078,0.85427609,19.271,19.27,112.6]
[1693606678383,0.85427609,19.271,19.268,113.31707738]
[1693606679180,0.85427609,19.271,19.268,79.84747738]
[1693606679481,112.6,19.27,19.263,112.6]
[1693606679686,144.91661573,19.27,19.263,112.6]
[1693606680189,144.91661573,19.27,19.255,40.77258566]
[1693606680190,32.31661573,19.27,19.265,112.6]
[1693606681788,32.31661573,19.27,19.268,112.6]
[1693606684990,32.31661573,19.27,19.268,79.1279]
[1693606685190,112.6,19.269,19.261,112.6]
[1693606692000,144.91661573,19.27,19.263,112.6]
[1693606701007,144.91661573,19.27,19.268,0.0625533]
[1693606702204,32.31661573,19.27,19.268,0.0625533]
[1693606705199,112.6,19.273,19.268,0.0625533]
[1693606705405,112.6,19.275,19.268,112.6625533]
[1693606732138,154.25080713,19.277,19.269,112.6]
[1693606741940,153.79626167,19.277,19.269,112.6]
[1693606745344,154.25080713,19.277,19.269,112.6]
[1693606745545,153.79626167,19.277,19.269,112.6]
[1693606746047,41.19626167,19.277,19.273,112.6]
[1693606746244,112.6,19.28,19.273,112.6]
[1693606753251,112.6,19.281,19.273,112.6]
[1693606759554,112.6,19.278,19.271,112.6]
[1693606772166,153.56730669,19.278,19.271,112.6]
[1693606777671,153.56730669,19.278,19.27,112.6]
[1693606782084,112.6,19.274,19.269,21.8424]
[1693606792395,112.6,19.272,19.268,0.0625533]
[1693606796196,112.6,19.271,19.268,0.0625533]
[1693606800310,112.6,19.271,19.263,112.6]
[1693606803406,112.6,19.27,19.263,112.6]
[1693606805817,112.6,19.27,19.268,0.0625533]
[1693606806017,42.55319148,19.276,19.268,0.0625533]
[1693606806215,112.6,19.273,19.268,0.0625533]
[1693606806417,112.6,19.276,19.268,112.6625533]
[1693606807916,112.6,19.275,19.268,112.6625533]
[1693606808116,0.74873188,19.274,19.27,0.83420217]
[1693606808316,0.74873188,19.274,19.271,112.6]
[1693606815024,112.6,19.279,19.271,112.6]
[1693606832630,112.6,19.281,19.273,112.6]
[1693606852050,112.6,19.281,19.274,0.06253383]
[1693606860152,112.6,19.278,19.274,0.06253383]
[1693606861753,112.6,19.278,19.27,112.72509267]
[1693606861754,112.6,19.278,19.27,112.6]
[1693606861945,112.6,19.277,19.27,112.6]
[1693606862856,112.6,19.275,19.267,112.6]
[1693606863051,112.6,19.273,19.265,112.6]
[1693606865256,112.6,19.275,19.268,112.6]
[1693606866257,112.6,19.275,19.274,0.06253382]
[1693606868756,107.6,19.275,19.274,0.06253382]
[1693606871961,0.83145013,19.276,19.274,0.06253382]
[1693606876666,0.83145013,19.276,19.273,0.71430352]
[1693606881065,0.83145013,19.276,19.275,0.06253058]
[1693606882072,113.43145013,19.276,19.275,0.06253058]
[1693606891572,113.43145013,19.276,19.273,0.71430352]
[1693606891972,112.6,19.274,19.273,0.71430352]
[1693606892171,112.6,19.274,19.263,22.1042]
[1693606892375,112.6,19.27,19.262,112.6]
[1693606895882,112.6,19.269,19.261,112.6]
[1693606896078,112.6,19.269,19.267,0.18766681]
[1693606901989,113.38874013,19.27,19.267,0.18766681]
[1693606911102,112.6,19.269,19.267,0.18766681]
[1693606925911,112.6,19.268,19.267,0.18766681]
[1693606952035,112.6,19.269,19.267,0.18766681]
[1693606956129,112.6,19.268,19.267,0.18766681]
[1693606967737,112.6,19.268,19.266,0.77940978]
[1693606968744,112.6,19.267,19.266,0.77940978]
[1693607021698,112.6,19.268,19.266,0.77940978]
[1693607032004,0.78874013,19.27,19.266,0.77940978]
[1693607032005,112.6,19.269,19.266,0.77940978]
[1693607042011,112.6,19.268,19.266,0.77940978]
[1693607042612,0.78874013,19.27,19.266,0.77940978]
[1693607046706,0.78874013,19.27,19.266,113.37940978]
[1693607052021,0.78874013,19.27,19.267,112.6]
[1693607054722,0.78874013,19.27,19.266,0.77940978]
[1693607055015,112.6,19.269,19.266,0.77940978]
[1693607056923,112.6,19.267,19.266,0.77940978]
[1693607100270,154.99543331,19.267,19.266,0.77940978]
[1693607101467,154.99543331,19.267,19.261,0.25029846]
[1693607101774,142.39569915,19.262,19.257,0.31293571]
[1693607101974,112.6,19.258,19.257,0.31293571]
[1693607106680,112.6,19.258,19.25,21.646]
[1693607106876,112.6,19.254,19.25,21.646]
[1693607116792,112.6,19.254,19.247,112.6]
[1693607119700,0.79165291,19.252,19.247,112.6]
[1693607121997,0.79165291,19.252,19.245,112.6]
[1693607122296,0.79165291,19.252,19.245,135.35724541]